bitfinex-derivatives/quotes_ETHF0:USTF0_20251008
["timestamp","ask_amount","ask_price","bid_price","bid_amount"]
[1759927926400,0.2246,4478.1,4478.0,1.47159063]
[1759927927512,0.4498,4478.1,4478.0,1.47159063]
[1759927929206,0.7614,4478.1,4478.0,1.47159063]
[1759927929701,0.4498,4478.1,4478.0,3.23720835]
[1759927930419,0.2246,4478.4,4478.3,0.83121]
[1759927931015,0.2246,4478.4,4478.3,1.16181]
[1759927931213,0.4498,4478.4,4478.3,1.16181]
[1759927932206,0.7614,4478.4,4478.3,1.16181]
[1759927932814,0.4498,4478.4,4478.3,1.16181]
[1759927934018,0.93637,4478.8,4478.6,0.40178]
[1759927934314,0.7614,4478.7,4478.6,0.62198]
[1759927934516,0.7614,4478.7,4478.6,0.95258]
[1759927934812,0.7614,4478.7,4478.6,1.16178]
[1759927935014,1.16318,4478.7,4478.6,1.16178]
[1759927935311,3.2078,4478.9,4478.8,0.40177]
[1759927935517,3.4324,4478.9,4478.8,1.16177]
[1759927936813,3.2078,4479.4,4479.3,1.15122]
[1759927937219,3.42629255,4479.4,4479.3,1.15122]
[1759927938516,3.97679255,4479.4,4479.3,0.93922]
[1759927939615,0.40175,4479.1,4478.7,0.314]
[1759927939917,0.7662,4478.8,4478.7,0.93928]
[1759927940120,0.7662,4478.8,4478.7,0.40178]
[1759927940318,0.7662,4478.8,4478.7,0.71578]
[1759927941021,0.7662,4478.8,4478.7,0.93928]
[1759927942118,1.16798,4478.8,4478.7,0.40178]
[1759927942808,0.7662,4478.8,4478.7,1.15128]
[1759927943010,0.2157,4478.8,4478.7,1.15128]
[1759927950229,1.16798,4478.8,4478.7,0.7495]
[1759927950632,1.16798,4478.8,4478.7,1.15128]
[1759927950931,1.16798,4478.8,4478.7,0.7495]
[1759927951130,1.16798,4478.8,4478.7,1.15128]
[1759927951332,0.7662,4478.8,4478.7,1.15128]
[1759927951927,0.4439,4478.8,4478.7,1.15128]
[1759927952220,0.4439,4478.8,4478.7,0.7495]
[1759927952426,0.61746,4479.0,4478.9,0.83727]
[1759927952727,0.7662,4478.7,4478.6,0.93928]
[1759927952923,0.7662,4478.7,4478.6,1.15128]
[1759927953124,1.16798,4478.7,4478.6,0.7495]
[1759927954024,1.16798,4478.7,4478.6,1.15129]
[1759927954223,0.7662,4478.7,4478.6,1.15129]
[1759927954626,0.4439,4478.7,4478.6,1.15129]
[1759927955334,0.84568,4478.7,4478.6,1.15129]
[1759927955533,1.16798,4478.7,4478.6,1.15129]
[1759927955827,3.2078,4479.1,4479.0,0.2235]
[1759927956027,4.04924,4479.1,4479.0,0.8835]
[1759927956637,4.59974,4479.1,4479.0,0.8835]
[1759927958038,4.59974,4479.1,4479.0,1.28525]
[1759927959737,3.4235,4479.1,4479.0,1.28525]
[1759927960040,0.00279255,4479.4,4479.3,1.15122]
[1759927960236,0.76899255,4479.4,4479.3,0.7495]
[1759927960440,1.17070255,4479.4,4479.3,0.314]
[1759927960636,1.16794,4479.1,4479.0,0.93925]
[1759927961040,1.16794,4479.1,4479.0,0.5375]
[1759927962341,0.4443,4478.7,4478.6,0.3191]
[1759927962641,0.48323806,4478.7,4478.6,0.743]
[1759927962842,0.58243806,4478.7,4478.6,0.743]
[1759927963943,0.18065806,4478.7,4478.6,1.14479]
[1759927964247,0.0992,4478.7,4478.6,1.14479]
[1759927966045,0.50098,4478.7,4478.6,0.743]
[1759927967453,0.0992,4478.7,4478.6,1.14479]
[1759927967651,0.224,4478.9,4478.6,1.14479]
[1759927967850,0.72496,4478.9,4478.8,0.7515]
[1759927968151,0.82416,4478.9,4478.8,0.7515]
[1759927969553,0.4224,4478.9,4478.8,0.7515]
[1759927969752,0.4224,4478.9,4478.8,1.15327]
[1759927970546,0.82416,4478.9,4478.8,1.15327]
[1759927971154,0.3232,4478.9,4478.8,1.15327]
[1759927971451,0.4224,4478.9,4478.5,2.11690952]
[1759927971649,0.4224,4478.9,4478.5,2.43520952]
[1759927971650,0.062,4478.6,4478.5,2.43520952]
[1759927971855,0.50102,4478.2,4478.1,0.227]
[1759927972056,0.60022,4478.2,4478.1,0.227]
[1759927972355,0.60022,4478.2,4478.1,0.5453]
[1759927973653,0.60022,4478.2,4478.1,0.94713]
[1759927974556,0.60022,4478.2,4478.1,0.5453]
[1759927974757,0.60022,4478.2,4478.1,0.7515]
[1759927974956,0.1984,4478.2,4478.1,1.15333]
[1759927975255,0.0992,4478.2,4478.1,1.15333]
[1759927976157,0.224,4478.5,4478.3,0.40181]
[1759927976359,0.3232,4478.5,4478.4,0.7515]
[1759927976656,0.4224,4478.5,4478.4,0.7515]
[1759927977347,0.8242,4478.5,4478.4,0.7515]
[1759927978058,0.8242,4478.5,4478.4,0.5453]
[1759927978259,0.8862,4478.5,4478.4,0.5453]
[1759927978453,0.8862,4478.5,4478.4,0.94711]
[1759927978654,0.8862,4478.5,4478.4,0.5453]
[1759927979758,0.8862,4478.5,4478.4,0.3183]
[1759927979957,0.8242,4478.5,4478.4,0.94711]
[1759927980461,0.8862,4478.5,4478.4,0.3183]
[1759927980855,0.8242,4478.5,4478.4,0.94711]
[1759927981257,0.8242,4478.5,4478.4,0.5453]
[1759927981968,0.8242,4478.5,4478.4,0.94711]
[1759927983262,0.8242,4478.5,4478.4,0.5453]
[1759927983762,0.8862,4478.5,4478.4,0.5453]
[1759927984363,0.8862,4478.5,4478.4,0.3183]
[1759927984566,0.8242,4478.5,4478.4,0.5453]
[1759927985862,0.40183,4478.1,4478.0,0.13488467]
[1759927986061,0.40183,4478.1,4478.0,0.45318467]
[1759927986062,0.66223,4478.1,4478.0,0.45318467]
[1759927986564,0.66223,4478.1,4478.0,0.85502467]
[1759927986765,0.60023,4478.1,4478.0,1.08202467]
[1759927987367,0.60023,4478.1,4478.0,1.28822467]
[1759927987568,0.72502,4478.3,4478.2,1.15332]
[1759927989067,0.72502,4478.3,4478.2,0.7515]
[1759927989370,0.82422,4478.3,4478.2,0.7515]
[1759927989866,0.66222,4478.3,4478.2,0.3183]
[1759927990667,0.60022,4478.3,4478.2,0.5453]
[1759927990863,3.87002,4478.3,4478.2,0.3183]
[1759927991064,0.66223,4478.1,4478.0,0.00228467]
[1759927993066,0.1612,4478.0,4477.9,0.02233215]
[1759927993274,0.5464,4478.0,4477.9,0.02233215]
[1759927994072,0.5464,4478.0,4477.9,0.02492944]
[1759927994872,0.4844,4478.0,4477.9,0.02492944]
[1759927995671,0.2604,4478.0,4477.9,0.34322944]
[1759927995871,0.4844,4478.0,4477.9,0.34322944]
[1759927998369,0.88624,4478.0,4477.9,0.02492944]
[1759927999672,5.4224,4478.0,4476.9,1.99240952]
[1759927999873,0.40198,4476.5,4476.3,0.3088]
[1759928000074,0.74478,4476.5,4476.4,0.2127]
[1759928000277,0.1188,4476.5,4476.4,0.5215]
[1759928000474,0.3428,4476.5,4476.4,0.7458]
[1759928000678,0.3428,4476.5,4476.4,0.74848053]
[1759928001478,0.1188,4476.5,4476.4,0.74848053]
[1759928001774,3.72853,4477.0,4476.9,0.5215]
[1759928001974,3.72853,4477.0,4476.9,0.7458]
[1759928002174,3.89313,4477.0,4476.9,0.7458]
[1759928002375,3.95253,4477.0,4476.9,0.3088]
[1759928002575,3.98963,4477.0,4476.9,0.3088]
[1759928002775,3.95253,4477.0,4476.9,0.3088]
[1759928002978,3.95253,4477.0,4476.9,0.5215]
[1759928004075,3.2078,4477.0,4476.9,0.7458]
[1759928004681,3.2672,4477.0,4476.9,0.7458]
[1759928004881,3.3266,4477.0,4476.9,0.7458]
[1759928006182,3.3266,4477.0,4476.9,1.50690286]
[1759928006681,3.2672,4477.0,4476.9,1.50690286]
[1759928006882,3.2078,4477.0,4476.9,1.50690286]
[1759928007082,3.2672,4477.0,4476.9,1.50690286]
[1759928008573,3.2078,4477.0,4476.9,1.50690286]
[1759928008775,3.2078,4477.0,4476.9,1.90884286]
[1759928011589,3.72853,4477.0,4476.9,1.50690286]
[1759928012184,3.2672,4477.0,4476.9,1.50690286]
[1759928013288,3.2078,4477.0,4476.9,1.50690286]
[1759928013982,3.2078,4477.8,4477.5,0.1323]
[1759928014182,3.2672,4477.8,4477.7,1.50690286]
[1759928014385,3.3266,4478.4,4478.3,0.437]
[1759928014585,3.3266,4478.4,4478.3,0.7458]
[1759928014981,3.5506,4478.4,4478.3,0.7458]
[1759928015685,3.5506,4478.4,4478.3,0.5215]
[1759928015989,0.1188,4478.2,4478.1,0.3088]
[1759928016289,0.3799,4478.2,4478.1,0.3088]
[1759928016884,0.3428,4478.2,4478.1,0.5215]
[1759928017890,0.3428,4478.2,4478.1,0.3088]
[1759928018191,0.3428,4478.2,4478.1,0.5215]
[1759928018491,0.3428,4478.2,4478.1,0.7458]
[1759928019991,3.2078,4478.4,4478.2,0.3088]
[1759928020183,3.2672,4478.4,4478.3,1.50690286]
[1759928020384,3.5506,4478.4,4478.3,1.50690286]
[1759928021791,3.5506,4478.4,4478.3,1.06990286]
[1759928021993,3.5878,4478.4,4478.3,1.06990286]
[1759928022591,3.5878,4478.4,4478.3,0.3088]
[1759928022788,3.5506,4478.4,4478.3,0.5222]
[1759928023692,3.5878,4478.4,4478.3,0.3088]
[1759928024588,0.0595,4477.7,4477.6,0.3415]
[1759928024787,0.119,4477.7,4477.6,1.10260286]
[1759928025287,0.343,4477.7,4477.3,3.5493]
[1759928025486,0.1562,4477.2,4477.1,0.17657552]
[1759928025692,0.3802,4477.2,4477.1,0.3415]
[1759928026197,0.119,4477.2,4477.1,0.5549]
[1759928026495,0.343,4477.2,4477.1,0.7793]
[1759928026697,0.119,4477.2,4477.1,0.7793]
[1759928026898,0.343,4477.2,4477.1,0.7793]
[1759928027194,0.3807,4477.2,4477.1,0.3415]
[1759928029094,0.1206,4476.9,4476.8,0.76110286]
[1759928029397,0.3823,4476.9,4476.8,1.09700286]
[1759928029693,0.3823,4476.9,4476.8,0.3359]
[1759928030488,0.1583,4476.7,4476.6,0.3359]
[1759928036798,0.1206,4476.7,4476.6,0.5494]
[1759928037299,0.1206,4476.7,4476.6,1.52330286]
[1759928037501,0.3446,4476.7,4476.6,1.52330286]
[1759928038899,0.0603,4476.7,4476.6,1.52330286]
[1759928039101,3.3284,4477.4,4477.3,0.2135]
[1759928039404,3.5524,4477.4,4477.3,0.5494]
[1759928039593,3.5901,4477.4,4477.3,0.3359]
[1759928041099,3.3284,4477.4,4477.3,0.5494]
[1759928041302,3.5524,4477.4,4477.3,0.5494]
[1759928041605,3.5901,4477.4,4477.3,0.3359]
[1759928042609,0.1206,4477.2,4477.1,0.3359]
[1759928042798,0.3823,4477.2,4477.1,0.3359]
[1759928044106,0.1206,4476.6,4476.5,0.4682]
[1759928044299,0.3823,4476.6,4476.5,0.4682]
[1759928045301,0.3446,4476.6,4476.5,0.4682]
[1759928045501,0.3446,4476.6,4476.5,0.6817]
[1759928048305,0.098,4476.5,4476.4,0.33858053]
[1759928048606,0.1206,4476.5,4476.4,0.55208053]
[1759928049309,0.1206,4476.5,4476.4,0.76488053]
[1759928051610,0.1583,4476.5,4476.4,0.33858053]
[1759928051904,0.1583,4476.5,4476.4,0.00268053]
[1759928052509,0.1206,4476.5,4476.4,0.33858053]
[1759928052707,0.1206,4476.5,4476.4,0.55208053]
[1759928053504,0.0603,4476.5,4476.4,0.76488053]
[1759928053902,0.224,4476.6,4476.5,0.8945]
[1759928054210,0.2843,4476.6,4476.5,0.8945]
[1759928054410,0.3446,4476.6,4476.5,0.8945]
[1759928054905,0.3446,4476.6,4476.5,0.6817]
[1759928055106,0.3823,4476.6,4476.5,0.3359]
[1759928055713,0.1583,4476.6,4476.5,0.3359]
[1759928055910,0.0377,4476.5,4476.4,0.00268053]
[1759928056115,0.1583,4476.5,4476.4,0.00268053]
[1759928058110,0.0973,4475.4,4475.3,0.3307]
[1759928058305,0.3812,4475.4,4475.3,0.3307]
[1759928059015,0.1198,4474.8,4474.7,0.3307]
[1759928059318,0.1198,4474.8,4474.7,0.33252321]
[1759928059508,0.1198,4474.8,4474.7,0.54742321]
[1759928059708,0.1198,4474.8,4474.3,0.94855948]
[1759928059709,0.1198,4474.3,4474.0,0.4571]
[1759928059909,0.0374,4474.0,4473.7,0.3307]
[1759928060117,0.1198,4473.8,4473.7,0.5456]
[1759928060318,0.1198,4473.8,4473.7,1.70785948]
[1759928060515,3.2078,4474.6,4474.5,0.1264]
[1759928060716,3.3276,4474.6,4474.5,0.67485377]
[1759928060918,3.589,4474.6,4474.5,0.45995377]
[1759928061220,3.589,4474.6,4474.5,0.00285377]
[1759928061917,4.53755948,4474.6,4474.5,0.00285377]
[1759928065126,7.42076675,4474.6,4472.9,0.02235711]
[1759928065315,7.42076675,4474.6,4472.9,0.35305711]
[1759928065316,0.0553,4473.0,4472.9,0.35305711]
[1759928065516,0.3346,4473.0,4472.9,0.56795711]
[1759928066120,0.3346,4473.0,4472.9,0.56959345]
[1759928066320,0.3346,4473.0,4472.9,0.35469345]
[1759928066517,0.3692,4473.0,4472.9,0.35469345]
[1759928066712,0.3346,4473.0,4472.9,0.35469345]
[1759928067217,0.0169,4472.2,4472.1,0.5456]
[1759928067410,3.2078,4472.7,4472.5,0.1264]
[1759928067612,3.2416,4472.7,4472.6,0.7593]
[1759928067919,3.4656,4472.7,4472.6,0.7593]
[1759928068116,3.4656,4472.7,4472.6,0.5456]
[1759928068314,3.46740699,4472.7,4472.6,0.33227897]
[1759928068515,3.47800699,4472.7,4472.6,0.00157897]
[1759928068914,0.27020699,4472.7,4472.6,0.00157897]
[1759928069310,0.03560699,4472.7,4472.6,0.76087897]
[1759928069516,0.25960699,4472.7,4472.6,0.33227897]
[1759928069713,0.27020699,4472.7,4472.6,0.33227897]
[1759928070119,0.27020699,4472.7,4472.5,0.1264]
[1759928070120,0.0338,4471.6,4471.5,0.4571]
[1759928070312,0.0338,4471.6,4471.5,0.8857]
[1759928070511,0.0169,4471.6,4471.5,0.8857]
[1759928071116,0.0169,4471.6,4471.5,0.88795787]
[1759928072119,0.0338,4471.6,4471.5,0.88795787]
[1759928072323,0.0338,4471.6,4471.5,0.67425787]
[1759928072921,0.2578,4471.6,4471.5,0.88795787]
[1759928073621,0.0338,4471.6,4471.5,0.88795787]
[1759928073820,0.2409,4471.6,4471.5,0.88795787]
[1759928074729,0.224,4471.6,4471.5,0.88795787]
[1759928075425,0.2409,4471.6,4471.5,0.88795787]
[1759928075626,0.224,4471.6,4471.5,0.88795787]
[1759928075823,3.2247,4472.6,4472.5,0.8857]
[1759928076033,3.4656,4472.6,4472.5,0.8857]
[1759928076224,3.4656,4472.6,4472.5,0.672]
[1759928078228,3.4762,4472.6,4472.5,0.3307]
[1759928078528,3.4656,4472.6,4472.5,0.4571]
[1759928078727,3.2416,4472.6,4472.5,0.672]
[1759928079029,3.4656,4472.6,4472.5,0.8857]
[1759928080618,3.4656,4472.6,4472.5,0.4571]
[1759928080827,3.2416,4472.6,4472.5,0.672]
[1759928081128,3.2416,4472.6,4472.5,0.8857]
[1759928081325,3.4656,4472.6,4472.5,0.8857]
[1759928082636,3.4656,4472.6,4472.5,0.672]
[1759928082929,3.2416,4472.6,4472.5,0.672]
[1759928083142,3.4656,4472.6,4472.5,0.672]
[1759928083831,3.4759,4472.6,4472.5,0.4571]
[1759928084336,3.4656,4472.6,4472.5,0.4571]
[1759928084636,3.2416,4472.6,4472.5,0.4571]
[1759928084932,3.4656,4472.6,4472.5,0.6796]
[1759928085134,3.4656,4472.6,4472.5,0.8896]
[1759928085329,3.4656,4472.6,4472.5,0.6796]
[1759928085738,3.4759,4472.6,4472.5,0.3307]
[1759928086133,3.4656,4472.6,4472.5,0.6834]
[1759928086537,0.3644,4472.1,4472.0,0.6824]
[1759928086733,0.5884,4472.1,4472.0,0.4554]
[1759928088638,3.39,4472.6,4472.5,0.1327]
[1759928088938,3.7962,4472.6,4472.5,0.9145]
[1759928089438,3.9101,4472.6,4472.5,0.329]
[1759928089832,3.7962,4472.6,4472.5,0.6887]
[1759928090242,3.7962,4472.6,4472.5,0.4617]
[1759928090833,3.7962,4472.6,4472.5,0.6887]
[1759928091132,0.3644,4472.2,4472.1,0.329]
[1759928091333,0.5884,4472.2,4472.1,0.556]
[1759928091743,0.5884,4472.2,4472.1,0.329]
[1759928091744,0.7023,4472.2,4472.1,0.329]
[1759928091944,0.7023,4472.2,4471.6,0.329]
[1759928094141,0.53996549,4472.1,4471.6,0.329]
[1759928094338,0.7023,4472.2,4471.6,0.329]
[1759928094534,0.1822,4471.7,4471.6,0.329]
[1759928094741,0.1822,4471.7,4471.6,0.7818]
[1759928095644,0.3644,4471.7,4471.6,0.7818]
[1759928097947,0.224,4471.9,4471.6,0.7818]
[1759928098147,0.1822,4471.8,4471.7,0.329]
[1759928098339,0.1139,4471.6,4471.5,0.00225787]
[1759928098539,0.4783,4471.6,4471.5,0.00225787]
[1759928098734,0.4783,4471.6,4471.5,0.33125787]
[1759928099042,0.4783,4471.6,4471.5,0.00225787]
[1759928099345,0.4783,4471.6,4471.5,0.91675787]
[1759928099346,1.12906407,4471.6,4471.5,0.91675787]
[1759928099939,1.12906407,4471.6,4471.5,0.46395787]
[1759928100141,1.24296407,4471.6,4471.5,0.46395787]
[1759928100341,1.24296407,4471.6,4471.5,0.00225787]
[1759928101543,0.1786,4470.6,4470.5,0.329]
[1759928101748,3.2078,4471.4,4471.0,0.9145]
[1759928101952,0.7632218,4471.3,4471.2,0.4528]
[1759928102152,3.2078,4472.1,4471.2,0.7818]
[1759928102347,1.12049767,4472.0,4471.9,0.556]
[1759928102548,1.23209767,4472.0,4471.9,0.33132111]
[1759928103044,1.23209767,4472.0,4471.9,0.55832111]
[1759928103045,0.89649767,4472.0,4471.9,0.55832111]
[1759928103247,0.5812,4472.0,4471.9,0.55832111]
[1759928103445,0.3572,4472.0,4471.9,0.33132111]
[1759928103652,1.22437655,4472.0,4471.9,0.00232111]
[1759928103949,1.00037655,4472.0,4471.9,0.00232111]
[1759928104149,0.6928,4472.0,4471.9,0.00232111]
[1759928104650,1.22300237,4472.0,4471.9,0.00232111]
[1759928105246,0.6928,4472.0,4471.9,0.00232111]
[1759928105646,0.5812,4472.0,4471.9,0.55832111]
[1759928106046,0.5812,4472.0,4471.9,0.78412111]
[1759928106552,0.5812,4472.0,4471.9,0.55832111]
[1759928106753,0.5812,4472.0,4471.9,0.78412111]
[1759928108254,0.5812,4472.0,4471.9,0.55832111]
[1759928109355,0.3572,4472.0,4471.9,1.54709469]
[1759928109654,3.2078,4472.1,4472.0,0.9145]
[1759928110250,3.4318,4472.1,4472.0,0.9145]
[1759928110450,3.6104,4472.1,4472.0,0.9145]
[1759928110951,3.3864,4472.1,4472.0,0.9145]
[1759928111150,3.4318,4472.1,4472.0,0.9145]
[1759928111346,3.4318,4472.1,4472.0,1.67747358]
[1759928111552,3.2078,4472.1,4472.0,1.67747358]
[1759928111758,3.4318,4472.1,4472.0,1.67747358]
[1759928112759,3.2078,4472.6,4472.5,0.1327]
[1759928112949,3.3864,4472.6,4472.5,0.9145]
[1759928113156,3.6104,4472.6,4472.5,0.9145]
[1759928113354,3.3864,4472.6,4472.5,0.9145]
[1759928113655,3.6104,4472.6,4472.5,0.9145]
[1759928114557,3.789,4472.6,4472.5,0.9145]
[1759928115850,3.789,4472.6,4472.5,0.6887]
[1759928116048,3.9006,4472.6,4472.5,0.6887]
[1759928116362,0.4688,4472.2,4472.1,1.93636875]
[1759928116657,0.4688,4472.0,4471.9,0.33772111]
[1759928116859,0.6928,4472.0,4471.9,0.33772111]
[1759928117053,0.5812,4472.0,4471.9,0.56322111]
[1759928118056,0.5812,4472.0,4471.9,0.76932111]
[1759928119858,0.4026,4472.0,4471.9,0.76932111]
[1759928120463,0.4026,4472.0,4471.9,1.53229469]
[1759928120660,0.1786,4472.0,4471.9,1.53229469]
[1759928120856,3.2078,4472.6,4472.5,0.1291]
[1759928121057,3.789,4472.6,4472.5,0.6731]
[1759928121753,3.565,4472.6,4472.5,0.6731]
[1759928122062,3.565,4472.6,4472.5,0.8977]
[1759928122063,3.6104,4472.6,4472.5,0.8977]
[1759928122265,3.789,4472.6,4472.5,0.8977]
[1759928123761,3.6104,4472.6,4472.5,0.8977]
[1759928123963,3.9007,4472.6,4472.5,0.3318]
[1759928124652,3.9007,4472.6,4472.5,0.4609]
[1759928125260,3.789,4472.6,4472.5,0.8977]
[1759928126162,3.565,4472.6,4472.5,0.8977]
[1759928126463,3.789,4472.6,4472.5,0.8977]
[1759928127067,3.2078,4472.6,4472.5,0.8977]
[1759928127261,0.00180699,4472.7,4472.5,0.8977]
[1759928127462,0.00180699,4472.7,4472.6,1.53157358]
[1759928127666,0.22580699,4472.7,4472.6,1.53157358]
[1759928128166,0.00180699,4472.7,4472.6,1.53157358]
[1759928130367,0.35900699,4472.7,4472.6,0.7686]
[1759928131965,0.00180699,4472.7,4472.6,0.7686]
[1759928132358,0.35900699,4472.7,4472.6,0.7686]
[1759928133360,0.35900699,4472.7,4472.4,1.60736875]
[1759928133562,0.47070699,4472.7,4472.6,0.3318]
[1759928134562,0.35900699,4472.7,4472.6,0.544]
[1759928134760,0.3572,4472.4,4471.7,1.60736875]
[1759928134970,0.1117,4472.0,4471.7,1.60736875]
[1759928135269,0.6929,4472.0,4471.6,1.60736875]
[1759928135569,0.5812,4472.0,4471.9,0.77092111]
[1759928136267,0.6929,4472.0,4471.9,0.33412111]
[1759928136866,0.5812,4472.0,4471.9,0.54632111]
[1759928137268,0.5812,4472.0,4471.9,1.53389469]
[1759928137671,0.1786,4472.0,4471.9,1.53389469]
[1759928137969,0.4026,4472.0,4471.9,1.53389469]
[1759928138172,0.224,4472.0,4471.9,1.53389469]
[1759928139268,3.2078,4472.6,4472.5,0.1291]
[1759928139470,3.6104,4472.6,4472.5,1.66067358]
[1759928139671,3.789,4472.6,4472.5,1.66067358]
[1759928140471,3.789,4472.6,4472.5,0.8977]
[1759928140668,3.6104,4472.6,4472.5,0.8977]
[1759928140868,3.4318,4472.6,4472.5,0.8977]
[1759928141266,3.2078,4472.6,4472.5,0.8977]
[1759928141470,3.4318,4472.6,4472.5,0.8977]
[1759928142364,3.2078,4472.6,4472.5,0.8977]
[1759928142569,1.19951234,4474.4,4472.5,0.8977]
[1759928142570,3.3867,4473.6,4473.5,0.8898]
[1759928142866,3.4318,4473.6,4473.5,1.65277358]
[1759928143474,3.43432944,4473.6,4473.5,1.65277358]
[1759928143673,3.21032944,4473.6,4473.5,1.65277358]
[1759928143878,3.43432944,4473.6,4473.5,0.8898]
[1759928144074,3.21032944,4473.6,4473.5,0.8898]
[1759928144275,3.43432944,4473.6,4473.5,0.8898]
[1759928145671,0.22652944,4473.6,4473.5,0.8898]
[1759928146979,0.00252944,4473.6,4473.5,0.8898]
[1759928153091,0.1115,4474.5,4474.0,0.1286]
[1759928153287,0.3568,4474.5,4474.4,0.7533]
[1759928154184,0.35907511,4474.5,4474.4,0.7533]
[1759928155692,0.69457511,4474.5,4474.4,0.3235]
[1759928157891,0.3568,4474.2,4474.1,0.39296612]
[1759928158092,0.3568,4474.2,4474.1,0.7533]
[1759928161701,0.4683,4474.2,4474.1,0.3235]
[1759928161907,0.3568,4473.4,4473.3,0.3235]
[1759928162104,0.3568,4473.4,4472.9,4.81454374]
[1759928162105,0.5808,4473.4,4473.0,0.4576]
[1759928162295,0.3568,4472.6,4472.5,0.6618]
[1759928162605,0.4024,4472.9,4472.8,0.7533]
[1759928162806,0.4024,4472.9,4472.8,1.51627358]
[1759928163008,0.5808,4472.9,4472.8,1.51627358]
[1759928163309,0.5808,4472.9,4472.8,1.29617358]
[1759928163903,0.3568,4472.7,4472.6,0.3235]
[1759928164302,0.1784,4472.7,4472.6,0.7533]
[1759928164505,0.224,4472.9,4472.6,0.7533]
[1759928164703,0.4024,4472.9,4472.8,1.51627358]
[1759928165003,0.6923,4472.9,4472.5,0.1286]
[1759928165198,0.6923,4472.9,4472.6,0.76297358]
[1759928165404,0.6923,4472.9,4472.8,0.4298]
[1759928165405,0.5808,4472.9,4472.8,0.4298]
[1759928165702,0.5808,4472.9,4472.8,0.7533]
[1759928165904,0.5808,4472.9,4472.8,0.5332]
[1759928166098,0.5808,4472.9,4472.8,0.3235]
[1759928166308,0.6923,4472.9,4472.8,0.3235]
[1759928167403,3.2078,4473.5,4473.0,0.1286]
[1759928167598,0.1784,4473.3,4473.2,1.51627358]
[1759928167803,3.2078,4473.5,4473.4,0.7533]
[1759928168008,3.5646,4473.5,4473.4,0.7533]
[1759928169110,4.62612598,4473.5,4473.1,0.3235]
[1759928169305,0.4683,4473.2,4473.1,0.3235]
[1759928169608,0.6923,4473.2,4473.1,0.3235]
[1759928169806,0.5808,4473.2,4472.7,0.3235]
[1759928170112,0.3568,4472.6,4472.5,0.6618]
[1759928172815,0.3568,4472.6,4472.5,0.8819]
[1759928173005,0.3568,4473.1,4473.0,0.6618]
[1759928173211,0.3568,4473.1,4473.0,0.8819]
[1759928174406,0.224,4473.3,4473.1,0.3235]
[1759928174609,0.224,4473.3,4473.2,1.70332598]
[1759928174808,0.4024,4473.3,4473.2,1.70332598]
[1759928175011,0.1784,4473.3,4473.2,1.70332598]
[1759928176317,0.3568,4473.3,4473.2,1.70332598]
[1759928176616,0.3568,4473.3,4473.2,1.48322598]
[1759928177504,0.5808,4473.3,4473.2,1.48322598]
[1759928178208,0.3568,4473.3,4473.2,1.69252598]
[1759928179718,3.2078,4473.5,4473.4,0.4295]
[1759928179917,3.4318,4473.5,4473.4,0.7675]
[1759928180120,3.7886,4473.5,4473.4,0.5518]
[1759928180609,3.3862,4474.1,4474.0,0.6798]
[1759928180814,3.3862,4474.1,4474.0,0.8955]
[1759928181016,3.4318,4474.1,4474.0,0.8955]
[1759928181416,3.6102,4474.1,4474.0,0.8955]
[1759928182509,0.00227511,4474.5,4474.0,0.8955]
[1759928182714,0.18067511,4474.5,4474.4,0.4295]
[1759928182912,0.40467511,4474.5,4474.4,0.7675]
[1759928183107,0.58307511,4474.5,4474.4,0.7675]
[1759928184119,0.18067511,4474.5,4474.4,0.7675]
[1759928184421,0.58307511,4474.5,4474.4,0.7675]
[1759928184621,0.69457511,4474.5,4474.4,0.338]
[1759928185424,0.58307511,4474.5,4474.4,0.5518]
[1759928186420,0.58307511,4474.5,4474.4,0.338]
[1759928186817,0.58307511,4474.5,4474.4,0.5518]
[1759928188125,0.58307511,4474.5,4474.4,0.7675]
[1759928188316,0.22627511,4474.5,4474.4,0.7675]
[1759928188621,0.58307511,4474.5,4474.4,0.7675]
[1759928188924,0.35907511,4474.5,4474.4,0.7675]
[1759928189127,0.58307511,4474.5,4474.4,0.7675]
[1759928189824,0.35907511,4474.5,4474.4,0.7675]
[1759928190025,0.58307511,4474.5,4474.4,0.7675]
[1759928191720,0.35907511,4474.5,4474.4,0.7675]
[1759928191926,0.58307511,4474.5,4474.4,0.7675]
[1759928192323,0.00227511,4474.5,4474.4,0.7675]
[1759928192526,0.00227511,4474.5,4474.4,1.71752598]
[1759928194427,0.18067511,4474.5,4474.4,0.7675]
[1759928195023,0.00227511,4474.5,4474.4,0.7675]
[1759928197519,0.35907511,4474.5,4474.4,0.338]
[1759928197719,0.35907511,4474.5,4474.4,0.7675]
[1759928197928,0.00227511,4474.5,4474.4,0.7675]
[1759928198331,0.00227511,4474.5,4474.4,1.71752598]
[1759928199329,0.00227511,4474.5,4474.4,1.89532794]
[1759928200129,0.00227511,4474.5,4474.4,1.71752598]
[1759928200629,0.35907511,4474.5,4474.4,0.7675]
[1759928203634,0.18067511,4474.5,4474.4,0.7675]
[1759928203835,0.00227511,4474.5,4474.4,1.71752598]
[1759928205533,0.1118,4474.3,4474.1,0.3198]
[1759928205738,0.4694,4474.2,4474.1,0.3198]
[1759928205933,0.4694,4473.7,4473.6,1.60674374]
[1759928206238,0.4694,4473.6,4473.5,0.4478]
[1759928206433,0.3576,4473.6,4473.5,0.6665]
[1759928206639,0.3576,4473.6,4473.5,0.8859]
[1759928207840,0.1788,4473.6,4473.5,0.8859]
[1759928208332,0.4029,4474.1,4474.0,0.1278]
[1759928208534,0.6936,4474.1,4474.0,0.4439]
[1759928210835,0.4696,4473.7,4473.6,0.3161]
[1759928211037,0.3578,4473.7,4473.6,0.5228]